bitfinex/quotes_SOLUSD_20240729
["timestamp","ask_amount","ask_price","bid_price","bid_amount"]
[1722268685471,0.17,187.39,187.34,5.3376]
[1722268685472,0.17,187.39,187.36,1.06734417]
[1722268686476,0.17,187.39,187.35,1.06734551]
[1722268686800,0.17,187.39,187.36,1.06734547]
[1722268687342,13.73,187.39,187.34,1.06734688]
[1722268688458,13.73,187.39,187.34,6.40514688]
[1722268688770,0.17,187.39,187.34,6.40514688]
[1722268689648,0.17,187.39,187.34,1.06734688]
[1722268689853,0.17,187.39,187.34,6.40514688]
[1722268692554,0.17,187.39,187.35,1.0673452]
[1722268692750,13.56,187.37,187.3,20.5268]
[1722268692955,0.34,187.36,187.3,20.5268]
[1722268693163,0.34,187.36,187.3,25.8657]
[1722268693584,0.17,187.36,187.31,1.0675273]
[1722268694067,0.17,187.36,187.31,6.4062273]
[1722268695055,0.17,187.36,187.31,1.0675273]
[1722268695686,0.17,187.36,187.31,6.4062273]
[1722268696157,13.73,187.36,187.31,1.0675273]
[1722268696360,13.73,187.36,187.3,5.0]
[1722268697383,13.73,187.36,187.3,10.339]
[1722268697981,13.56,187.36,187.3,5.0]
[1722268698566,13.56,187.36,187.31,5.3386]
[1722268698878,13.56,187.36,187.3,10.3389]
[1722268701283,45.66,187.36,187.3,5.0]
[1722268701584,13.56,187.32,187.3,5.0]
[1722268701874,5.6776,187.35,187.3,5.0]
[1722268702467,0.34,187.35,187.3,5.0]
[1722268706966,37.7778,187.35,187.3,5.0]
[1722268707290,32.44,187.35,187.3,5.0]
[1722268708064,13.56,187.32,187.3,5.0]
[1722268708265,0.17,187.31,187.3,5.0]
[1722268710774,13.9,187.31,187.3,5.0]
[1722268712993,57.6108,187.31,187.3,0.69928471]
[1722268713199,5.3393,187.29,187.21,21.1247]
[1722268713376,13.9,187.28,187.22,1.0680761]
[1722268713578,13.9,187.28,187.21,21.1247]
[1722268713874,13.9,187.28,187.22,5.3412]
[1722268714288,0.34,187.28,187.22,6.4092867]
[1722268714496,13.9,187.29,187.22,6.4092867]
[1722268714688,19.2393,187.29,187.22,6.4092867]
[1722268715677,13.9,187.29,187.22,6.4092867]
[1722268716286,51.3393,187.29,187.21,16.85138676]
[1722268716497,46.0,187.29,187.22,5.3411]
[1722268716682,51.3393,187.29,187.21,35.75288676]
[1722268716883,13.56,187.27,187.21,35.75288676]
[1722268717183,0.17,187.26,187.21,35.75288676]
[1722268718502,0.17,187.26,187.21,22.19288676]
[1722268719305,0.17,187.26,187.22,5.341]
[1722268719605,6.2721,187.31,187.26,5.34]
[1722268719776,13.56,187.31,187.26,5.3401]
[1722268720275,13.56,187.31,187.25,18.6909]
[1722268720696,6.2445,187.35,187.27,13.56]
[1722268720883,19.8045,187.35,187.29,5.3392]
[1722268721084,19.8045,187.35,187.29,18.6869]
[1722268722605,13.56,187.37,187.31,13.3461]
[1722268722913,13.56,187.38,187.32,5.3384]
[1722268723209,13.56,187.38,187.31,19.75224548]
[1722268724000,13.56,187.38,187.31,18.6847]
[1722268725411,0.17,187.37,187.31,13.3461]
[1722268726005,0.17,187.37,187.31,26.9061]
[1722268726189,0.17,187.37,187.32,1.06751562]
[1722268726581,0.17,187.37,187.3,13.56]
[1722268726911,0.17,187.37,187.3,18.8988]
[1722268727210,0.17,187.37,187.31,5.3387]
[1722268729003,13.73,187.37,187.3,18.8989]
[1722268729199,13.73,187.37,187.3,5.3389]
[1722268729902,13.73,187.37,187.31,1.06751697]
[1722268730112,13.56,187.36,187.31,1.06751697]
[1722268730285,13.56,187.36,187.3,5.3389]
[1722268731404,0.17,187.37,187.26,5.3399]
[1722268731405,13.56,187.33,187.26,5.3399]
[1722268731783,13.56,187.33,187.25,5.3403]
[1722268731784,0.17,187.32,187.25,5.3403]
[1722268731990,0.17,187.32,187.26,5.3401]
[1722268732409,0.17,187.32,187.27,19.96758878]
[1722268732708,0.34,187.33,187.27,19.96758878]
[1722268733201,5.3367,187.38,187.3,18.8989]
[1722268733404,13.9,187.37,187.3,18.8989]
[1722268734007,13.56,187.37,187.31,5.3386]
[1722268734694,13.56,187.38,187.32,5.3384]
[1722268735084,6.1834,187.39,187.33,19.96551585]
[1722268735706,6.1834,187.39,187.33,6.40551585]
[1722268736709,13.73,187.4,187.33,6.40551585]
[1722268736910,0.17,187.39,187.33,6.40551585]
[1722268737396,13.9,187.4,187.33,6.40551585]
[1722268737591,13.9,187.4,187.33,5.338]
[1722268737799,13.9,187.4,187.32,26.9056]
[1722268737800,13.56,187.39,187.32,18.684]
[1722268738309,5.3367,187.38,187.31,29.2863]
[1722268738525,0.17,187.37,187.31,29.2863]
[1722268738681,0.17,187.37,187.31,34.625]
[1722268739608,5.3365,187.39,187.32,6.40569413]
[1722268739609,13.56,187.39,187.32,6.40569413]
[1722268739804,13.56,187.39,187.32,5.3382]
[1722268740006,13.56,187.38,187.31,47.9712]
[1722268740800,13.56,187.38,187.32,5.3384]
[1722268740988,13.56,187.39,187.32,5.3384]
[1722268741190,13.9,187.4,187.33,5.3381]
[1722268741495,13.73,187.39,187.34,1.06740718]
[1722268741800,13.73,187.39,187.32,18.8983]
[1722268742191,13.73,187.39,187.33,1.06740885]
[1722268743126,13.56,187.38,187.32,5.3383]
[1722268743625,18.8969,187.38,187.31,29.0726]
[1722268743809,0.17,187.37,187.32,1.06741123]
[1722268744325,0.17,187.37,187.33,1.06750592]
[1722268745204,13.56,187.36,187.31,15.7263]
[1722268745402,13.73,187.37,187.31,15.7263]
[1722268745727,13.56,187.33,187.26,20.7822]
[1722268746035,0.17,187.34,187.28,13.56]
[1722268746220,0.17,187.37,187.28,13.56]
[1722268746221,13.73,187.37,187.29,13.56]
[1722268746395,13.73,187.37,187.3,13.56]
[1722268746601,13.73,187.37,187.29,13.3476]
[1722268746810,0.17,187.36,187.29,32.2469]
[1722268747011,0.17,187.36,187.3,1.06760372]
[1722268747532,19.0675,187.36,187.29,13.3476]
[1722268747827,0.17,187.35,187.29,13.3476]
[1722268748710,5.5076,187.35,187.28,18.8995]
[1722268748908,18.8979,187.34,187.26,42.3525]
[1722268749108,13.73,187.33,187.26,34.1326]
[1722268749338,19.0681,187.33,187.26,34.1326]
[1722268749626,19.0681,187.33,187.26,28.7925]
[1722268750933,5.3385,187.32,187.25,18.9004]
[1722268751139,0.17,187.31,187.25,5.3404]
[1722268752321,0.17,187.31,187.24,18.9006]
[1722268752525,0.17,187.31,187.25,5.3404]
[1722268752739,0.17,187.31,187.24,18.9007]
[1722268753633,13.73,187.31,187.24,18.9007]
[1722268753811,19.0688,187.31,187.23,18.6934]
[1722268754012,0.17,187.3,187.23,18.6934]
[1722268754209,0.17,187.3,187.22,29.1908]
[1722268754425,5.509,187.3,187.23,1.06803333]
[1722268754612,0.17,187.29,187.24,5.3406]
[1722268754807,13.73,187.31,187.25,1.06791176]
[1722268755004,13.73,187.31,187.25,6.40831176]
[1722268755207,13.73,187.31,187.25,1.06791176]
[1722268756028,13.73,187.31,187.25,5.3403]
[1722268756234,0.17,187.31,187.26,5.3401]
[1722268756413,13.9,187.32,187.26,6.40802356]
[1722268756615,0.34,187.32,187.26,6.40802356]
[1722268757233,0.34,187.32,187.26,1.06792356]
[1722268757417,0.34,187.32,187.26,14.62792356]
[1722268757736,29.35,187.35,187.28,18.8995]
[1722268758128,34.6876,187.35,187.27,18.8998]
[1722268758311,13.56,187.34,187.27,18.8998]
[1722268758915,13.56,187.33,187.26,18.6904]
[1722268759118,13.56,187.33,187.26,32.2504]
[1722268759519,13.56,187.33,187.26,13.3503]
[1722268759520,0.17,187.32,187.26,13.3503]
[1722268760018,0.17,187.32,187.26,18.6904]
[1722268761031,0.17,187.32,187.26,13.3503]
[1722268761420,13.56,187.31,187.24,5.3406]
[1722268761622,18.8987,187.31,187.23,32.2534]
[1722268761825,0.17,187.3,187.24,1.06793597]
[1722268762226,0.17,187.3,187.25,5.3404]
[1722268762427,13.56,187.31,187.26,1.06784379]
[1722268763332,13.56,187.31,187.25,18.9003]
[1722268763538,13.73,187.32,187.26,6.4079665]
[1722268764035,13.73,187.32,187.26,1.0678665]
[1722268765743,0.17,187.34,187.26,14.4181665]
[1722268765949,5.3378,187.35,187.27,13.56]
[1722268766247,18.8979,187.34,187.28,1.06768459]
[1722268766427,32.1,187.39,187.3,5.3389]
[1722268766619,5.337,187.37,187.31,1.06754709]
[1722268766821,18.897,187.37,187.31,1.06754709]
[1722268767835,13.56,187.38,187.31,14.62754709]
[1722268768021,18.8969,187.38,187.31,19.96614709]
[1722268768331,13.56,187.38,187.31,18.8986]
[1722268769379,32.1,187.44,187.33,5.3381]
[1722268769530,13.56,187.4,187.33,18.8981]
[1722268769737,13.56,187.4,187.33,5.3381]
[1722268770124,13.56,187.4,187.33,18.8981]
[1722268770525,18.8961,187.41,187.34,13.56]
[1722268771329,0.17,187.4,187.34,13.56]
[1722268771533,13.73,187.4,187.33,18.8981]
[1722268771744,0.17,187.4,187.33,18.8981]
[1722268772042,0.17,187.4,187.34,1.06730265]
[1722268772348,5.5061,187.4,187.33,13.56]
[1722268772556,19.0661,187.4,187.33,13.56]
[1722268773050,13.56,187.39,187.32,5.3384]
[1722268773237,13.56,187.37,187.3,13.347]
[1722268773430,19.0673,187.36,187.31,1.06746997]
[1722268773623,18.8973,187.36,187.31,1.06746997]
[1722268774054,13.56,187.36,187.31,1.06746997]
[1722268774433,13.56,187.36,187.3,1.06755883]
[1722268774635,13.73,187.37,187.32,1.06755883]
[1722268774951,18.8967,187.38,187.33,1.06746742]
[1722268775125,13.56,187.38,187.3,13.56]
[1722268775321,13.56,187.38,187.31,5.3387]
[1722268775551,18.8968,187.38,187.3,18.8987]
[1722268776234,13.56,187.37,187.31,1.0674689]
[1722268776437,0.17,187.36,187.31,1.0674689]
[1722268777941,0.17,187.37,187.31,1.0674689]
[1722268778927,2.12963801,187.44,187.32,42.581]
[1722268779136,6.6249,187.45,187.36,18.8973]
[1722268779329,13.56,187.43,187.37,1.0672112]
[1722268779754,13.56,187.42,187.37,1.0672112]
[1722268779948,13.56,187.42,187.35,18.8975]
[1722268780155,13.56,187.42,187.35,5.3375]
[1722268780451,13.56,187.41,187.35,5.3375]
[1722268781031,13.56,187.4,187.34,13.344]
[1722268781233,13.56,187.39,187.34,13.344]
[1722268781736,0.17,187.41,187.34,13.344]
[1722268781933,0.17,187.42,187.35,5.3373]
[1722268782135,5.6756,187.42,187.35,5.3373]
[1722268782355,13.56,187.39,187.34,18.6818]
[1722268782573,0.34,187.42,187.32,15.6753]
[1722268782574,13.56,187.38,187.32,15.6753]
[1722268782730,13.56,187.38,187.32,21.0135]
[1722268782936,13.56,187.38,187.33,5.3381]
[1722268783440,13.56,187.38,187.34,5.3378]
[1722268783762,13.56,187.38,187.35,5.3374]
[1722268784054,13.56,187.39,187.34,18.6821]
[1722268784663,13.56,187.4,187.34,18.6821]
[1722268785042,13.56,187.39,187.34,18.6821]
[1722268785539,13.56,187.39,187.34,13.3445]
[1722268785740,0.17,187.38,187.33,5.3381]
[1722268787146,13.56,187.37,187.33,5.3381]
[1722268787353,13.56,187.37,187.32,21.0136]
[1722268789463,13.56,187.35,187.32,15.6753]
[1722268789766,13.56,187.35,187.28,18.688]
[1722268789944,13.56,187.33,187.28,13.3487]
[1722268790145,13.56,187.33,187.29,5.3391]
[1722268790547,0.17,187.36,187.3,13.3468]
[1722268790873,13.56,187.35,187.29,5.3392]
[1722268791161,0.17,187.36,187.27,13.3495]
[1722268791162,13.56,187.34,187.27,13.3495]
[1722268791364,13.73,187.33,187.29,5.3391]
[1722268791565,0.17,187.33,187.29,5.3391]
[1722268791956,13.56,187.33,187.28,6.40723306]
[1722268792272,13.56,187.33,187.28,1.06773306]
[1722268792653,13.56,187.33,187.27,18.6891]
[1722268793772,13.56,187.33,187.27,13.3495]
[1722268793946,13.56,187.33,187.29,5.3392]
[1722268794577,32.1,187.38,187.3,13.3475]
[1722268794775,13.56,187.35,187.3,13.3475]
[1722268795075,13.56,187.35,187.29,5.3392]
[1722268795961,13.56,187.35,187.3,5.3389]
[1722268797173,13.56,187.35,187.28,13.3485]
[1722268797374,13.73,187.34,187.28,18.6878]
[1722268797580,0.17,187.34,187.29,1.06769969]
[1722268797764,13.56,187.35,187.28,13.3485]
[1722268798269,13.56,187.35,187.3,5.3389]
[1722268799784,13.56,187.35,187.28,13.3485]
[1722268799785,13.56,187.35,187.29,5.3392]
[1722268799989,13.73,187.34,187.29,5.3392]
[1722268800410,13.73,187.34,187.28,14.41618948]
[1722268800640,13.73,187.34,187.28,1.06768948]
[1722268800935,13.73,187.34,187.26,15.3319]
[1722268800936,13.56,187.32,187.26,15.3319]
[1722268801219,13.56,187.29,187.2,15.8124]
[1722268801484,13.56,187.29,187.22,13.56]
[1722268801692,13.56,187.3,187.24,18.6918]
[1722268803369,18.8991,187.3,187.23,5.3409]
[1722268803589,5.3393,187.29,187.21,32.2553]
[1722268803798,19.0696,187.28,187.21,13.3538]
[1722268804094,0.17,187.27,187.22,13.56]
[1722268804387,0.17,187.27,187.22,1.06808319]
[1722268804576,0.17,187.27,187.22,1.0680832]
[1722268804776,5.5098,187.27,187.21,14.4218832]
[1722268804984,5.5098,187.27,187.2,15.8124]
[1722268804985,0.17,187.27,187.2,21.1542]
[1722268805171,0.17,187.27,187.2,34.7142]
[1722268805172,0.34,187.27,187.2,34.7142]
[1722268805572,0.34,187.27,187.17,13.3562]
[1722268805573,13.56,187.26,187.17,13.3562]
[1722268805773,5.341,187.23,187.17,13.56]
[1722268805973,0.34,187.25,187.18,1.06829056]
[1722268805974,13.9,187.25,187.18,1.06829056]
[1722268806177,46.0,187.25,187.17,1.0682893]
[1722268806377,32.44,187.25,187.18,1.06835875]
[1722268806589,13.56,187.23,187.15,15.4617]
[1722268806908,0.17,187.22,187.16,1.06846084]
[1722268807090,13.56,187.23,187.18,5.3424]
[1722268807595,13.56,187.23,187.16,13.3569]
[1722268807979,13.56,187.23,187.18,5.3423]
[1722268808172,0.17,187.24,187.18,5.3423]
[1722268808786,0.17,187.24,187.16,18.6996]
[1722268808787,13.56,187.23,187.16,18.6996]
[1722268808984,0.17,187.22,187.16,18.6996]
[1722268809188,0.17,187.22,187.16,13.3569]
[1722268809390,0.17,187.22,187.16,18.6997]
[1722268809794,0.17,187.22,187.16,13.3569]
[1722268809992,13.56,187.21,187.16,13.3569]
[1722268810293,0.17,187.2,187.15,15.4617]
[1722268810502,0.17,187.2,187.15,20.8049]
[1722268810801,13.56,187.19,187.15,15.4617]
[1722268810984,0.17,187.18,187.12,18.7036]
[1722268811298,0.17,187.18,187.12,5.344]
[1722268811503,0.34,187.18,187.12,5.344]
[1722268811678,0.34,187.18,187.12,13.3603]
[1722268811874,13.9,187.19,187.13,1.06869533]
[1722268812087,13.9,187.19,187.12,26.9203]
[1722268812399,0.17,187.19,187.15,13.358]
[1722268812583,13.56,187.22,187.16,13.56]
[1722268812771,13.56,187.22,187.18,5.3424]
[1722268812976,13.56,187.24,187.19,5.342]
[1722268813383,13.56,187.23,187.15,13.3581]
[1722268813699,13.56,187.21,187.16,5.3429]
[1722268814000,13.56,187.21,187.15,18.7012]
[1722268814207,18.9017,187.21,187.12,26.9202]
[1722268814421,13.56,187.19,187.13,1.06862019]
[1722268814701,0.17,187.18,187.13,6.41243416]
[1722268815202,13.56,187.17,187.1,15.5186]
[1722268815402,13.56,187.15,187.07,5.3453]
[1722268815579,5.6832,187.16,187.05,15.6342]
[1722268815580,0.17,187.16,187.1,13.56]
[1722268815778,6.3013,187.18,187.11,14.42955708]
[1722268815978,0.17,187.17,187.11,14.42955708]
[1722268816185,0.17,187.17,187.11,1.06865708]
[1722268816596,0.17,187.17,187.11,6.41305708]
[1722268816790,0.17,187.17,187.13,13.3596]
[1722268816990,0.17,187.17,187.13,1.06863052]
[1722268817201,0.17,187.17,187.1,13.56]
[1722268817378,19.2429,187.17,187.1,13.56]
[1722268817697,13.9,187.17,187.11,1.06877435]
[1722268818397,5.3432,187.16,187.11,1.06877435]
[1722268818593,0.17,187.15,187.11,1.06877435]
[1722268818797,0.17,187.15,187.1,13.56]
[1722268819104,19.0733,187.15,187.09,1.06875977]
[1722268819303,13.56,187.17,187.11,1.06879877]
[1722268819480,5.683,187.16,187.1,13.56]
[1722268819813,5.683,187.16,187.08,32.2681]
[1722268819987,18.9034,187.15,187.06,5.3456]
[1722268820187,0.17,187.14,187.07,5.3455]
[1722268820406,0.17,187.14,187.09,5.345]
[1722268820700,0.17,187.14,187.1,1.06879327]
[1722268821007,0.17,187.15,187.1,1.06879327]
[1722268821192,0.17,187.16,187.09,5.345]
[1722268821193,0.34,187.16,187.11,1.06878029]
[1722268821397,5.683,187.16,187.1,1.06878029]
[1722268821601,5.683,187.16,187.08,18.708]
[1722268821926,5.683,187.16,187.07,13.56]
[1722268821927,5.3437,187.14,187.07,13.56]
[1722268822108,0.17,187.13,187.08,1.06887133]
[1722268822328,0.17,187.13,187.1,5.3447]
[1722268822806,0.17,187.14,187.08,14.43187133]
[1722268822807,0.34,187.14,187.08,18.7081]
[1722268823105,0.34,187.14,187.08,14.43187336]
[1722268823998,0.34,187.14,187.1,5.3446]
[1722268824406,0.34,187.14,187.09,5.3449]
[1722268824611,0.34,187.14,187.1,5.3446]
[1722268824811,32.15,187.23,187.16,5.343]
[1722268825107,13.56,187.19,187.14,18.7022]
[1722268825682,13.56,187.16,187.1,13.3611]
[1722268825884,13.56,187.16,187.12,5.3441]
[1722268826088,13.56,187.18,187.13,5.3438]
[1722268826305,13.56,187.18,187.13,6.41243204]
[1722268826714,0.17,187.17,187.13,6.41243204]
[1722268828316,0.17,187.17,187.13,1.06863204]
[1722268828491,0.17,187.17,187.13,5.3438]
[1722268829497,13.56,187.14,187.12,13.3597]
[1722268829913,13.56,187.14,187.12,18.7037]
[1722268830120,13.56,187.16,187.13,5.3437]
[1722268831000,13.56,187.16,187.12,18.7038]
[1722268831403,13.56,187.16,187.12,13.3597]
[1722268832122,13.56,187.16,187.09,13.56]
[1722268832294,13.56,187.16,187.1,5.3445]
[1722268833330,0.17,187.17,187.11,1.06863159]
[1722268833611,13.56,187.17,187.1,13.3613]
[1722268834209,13.56,187.17,187.1,18.7057]
[1722268834720,13.56,187.15,187.1,18.7057]
[1722268835027,13.56,187.15,187.1,13.3613]
[1722268835195,18.9033,187.15,187.07,13.3638]
[1722268835395,18.9033,187.15,187.07,18.7093]
[1722268835712,13.56,187.15,187.08,5.3452]
[1722268836010,13.56,187.15,187.08,6.41395867]
[1722268836199,18.9033,187.15,187.08,6.41395867]
[1722268836597,18.9033,187.15,187.07,32.2693]
[1722268837037,5.57042032,187.19,187.1,13.3617]
[1722268837222,13.56,187.16,187.1,13.3617]
[1722268837520,13.56,187.15,187.1,13.3617]
[1722268837726,13.56,187.15,187.08,13.56]
[1722268838226,13.56,187.15,187.08,18.905]
[1722268838433,13.56,187.15,187.08,19.97367928]
[1722268839603,13.56,187.15,187.08,6.41367928]
[1722268839799,13.56,187.15,187.09,5.3448]
[1722268840113,13.56,187.15,187.09,6.41347405]
[1722268840497,13.56,187.15,187.09,1.06867405]
[1722268841099,13.56,187.15,187.08,6.41397465]
[1722268841321,13.56,187.15,187.09,5.345]
[1722268841527,13.56,187.15,187.1,1.06867482]
[1722268841823,13.56,187.15,187.11,1.06867482]
[1722268842002,13.56,187.15,187.08,5.3452]
[1722268842201,13.56,187.15,187.09,1.06867499]
[1722268842620,5.3427,187.18,187.09,45.0]
[1722268842833,5.3427,187.18,187.1,5.3446]
[1722268843607,63.71986999,187.2,187.1,5.3446]
[1722268843608,5.3428,187.17,187.1,5.3446]
[1722268844043,63.71986999,187.2,187.08,45.0]
[1722268844204,5.3432,187.16,187.08,50.3452]
[1722268844855,5.3432,187.16,187.09,1.06865756]
[1722268845010,5.3432,187.16,187.08,50.3452]
[1722268845414,0.34,187.19,187.08,50.3452]
[1722268845415,0.34,187.19,187.09,5.3448]
[1722268845714,5.343,187.16,187.09,5.3448]
[1722268845919,5.343,187.16,187.08,50.3452]
[1722268847026,5.3433,187.15,187.09,1.06864618]
[1722268847403,13.56,187.13,187.09,1.06864618]
[1722268848426,13.56,187.13,187.08,45.0]
[1722268849738,13.56,187.13,187.08,50.3452]
[1722268850306,13.56,187.13,187.08,45.0]
[1722268854445,13.56,187.13,187.06,18.7099]
[1722268854604,13.56,187.13,187.07,45.0]
[1722268855010,26.63625493,187.19,187.05,15.6342]
[1722268855011,13.56,187.09,187.05,15.6342]
[1722268855440,13.56,187.07,187.04,0.5]
[1722268855772,13.56,187.05,187.04,0.5]
[1722268856053,13.56,187.06,187.04,0.5]
[1722268858460,18.9059,187.06,187.04,0.5]
[1722268860352,13.56,187.05,187.04,0.5]
[1722268861339,18.9061,187.05,187.04,0.5]
[1722268861564,51.3961,187.05,187.04,0.5]
[1722268861856,19.0761,187.05,187.04,0.5]
[1722268862359,19.2461,187.05,187.04,0.5]
[1722268862553,19.0761,187.05,187.04,0.5]
[1722268863558,19.2461,187.05,187.04,0.5]
[1722268865355,5.6861,187.05,187.04,0.5]
[1722268865555,19.2461,187.05,187.04,0.5]
[1722268865942,0.34,187.05,187.04,0.5]
[1722268866260,7.3735863,187.08,187.04,0.5]
[1722268866649,13.56,187.06,187.04,0.5]
[1722268867053,5.3456,187.07,187.04,0.5]
[1722268867363,13.56,187.06,187.04,0.5]
[1722268867658,18.9061,187.05,187.04,0.5]
[1722268867870,19.0761,187.05,187.04,0.5]
[1722268868031,19.2461,187.05,187.04,0.5]
[1722268870559,5.3477,187.0,186.94,15.668]
[1722268870857,13.56,186.96,186.94,15.668]
[1722268872064,13.56,186.95,186.89,15.0823]
[1722268872267,13.56,186.93,186.89,15.0823]
[1722268872479,18.91,186.92,186.89,15.0823]
[1722268872765,13.56,186.93,186.89,15.0823]
[1722268872968,13.56,186.93,186.89,20.4329]
[1722268873140,13.56,186.93,186.89,15.0823]
[1722268873767,54.24,187.02,186.89,15.0823]
[1722268874068,54.24,187.02,186.91,13.3754]
[1722268874069,13.56,186.98,186.91,13.3754]
[1722268874369,13.56,186.96,186.89,15.0823]
[1722268874538,13.56,186.94,186.9,45.0]
[1722268874738,13.56,186.95,186.9,45.0]
[1722268874942,13.56,186.94,186.89,15.0823]
[1722268875363,13.56,186.93,186.89,15.0823]
[1722268875539,13.56,186.92,186.89,15.0823]
[1722268875742,13.56,186.91,186.89,15.0823]
[1722268876161,13.56,186.91,186.86,13.3788]
[1722268876361,13.56,186.9,186.85,0.7645621]
[1722268876545,13.56,186.89,186.85,0.7645621]
[1722268877348,13.56,186.87,186.85,0.7645621]
[1722268877643,13.56,186.88,186.85,0.7645621]
[1722268877846,5.3504,186.9,186.85,0.7645621]
[1722268878275,13.56,186.88,186.85,0.7645621]
[1722268878571,13.56,186.87,186.85,0.7645621]
[1722268879073,5.3496,186.93,186.85,6.1163621]
[1722268879249,13.56,186.9,186.85,6.1163621]
[1722268879457,13.56,186.91,186.85,19.4959621]
[1722268879876,13.56,186.91,186.85,14.1441621]
[1722268880072,13.56,186.9,186.85,0.7645621]
[1722268880370,13.56,186.88,186.85,0.7645621]
[1722268880879,13.56,186.93,186.85,0.7645621]
[1722268880880,13.56,186.87,186.85,0.7645621]
[1722268881061,13.56,186.86,186.85,0.7645621]
[1722268881375,13.56,186.87,186.85,0.7645621]
[1722268881675,13.56,186.86,186.85,0.7645621]
[1722268881847,18.9116,186.86,186.85,0.7645621]
[1722268882359,32.6416,186.86,186.85,0.7645621]
[1722268882665,0.34,186.86,186.75,15.5135]
[1722268882867,13.56,186.79,186.75,15.5135]
[1722268883170,0.17,186.85,186.76,1.07070161]
[1722268883359,38.6132,186.91,186.78,18.7381]
[1722268883545,13.56,186.84,186.76,13.56]
[1722268883755,13.56,186.82,186.77,1.07043888]
[1722268884062,13.56,186.81,186.75,15.5135]
[1722268884256,13.56,186.84,186.77,13.3851]
[1722268884455,18.9119,186.85,186.77,33.3696367]
[1722268884865,0.17,186.9,186.79,13.56]
[1722268885052,18.9121,186.85,186.78,13.56]
[1722268885267,18.9121,186.85,186.77,33.1574]
[1722268885571,13.56,186.88,186.8,13.3832]
[1722268885793,13.56,186.88,186.81,58.56]
[1722268885947,13.56,186.88,186.82,5.3527]
[1722268886149,21.21612768,186.89,186.83,16.639]
[1722268886366,7.65612768,186.89,186.84,1.07014397]
[1722268886567,13.56,186.9,186.83,35.5513]
[1722268886768,9.74566377,186.94,186.83,16.639]
[1722268886986,13.56,186.89,186.83,16.639]
[1722268887282,41.89566377,186.94,186.83,16.639]
[1722268887457,72.8047,186.92,186.83,16.639]
[1722268887774,34.90420546,186.92,186.83,16.639]
[1722268887980,7.62420546,186.92,186.83,16.639]
[1722268888488,7.62420546,186.92,186.85,13.3796]
[1722268888787,7.62420546,186.98,186.86,6.557]
[1722268888968,7.62420546,186.98,186.87,14.44732871]
[1722268889172,6.388,187.04,186.89,15.4678]
[1722268889353,5.3469,187.03,186.94,5.3492]
[1722268889554,7.62420546,187.04,186.95,1.06952626]
[1722268889775,7.62420546,187.04,186.96,18.7199]
[1722268889981,5.3457,187.07,186.99,15.4678]
[1722268890980,5.3459,187.06,186.99,15.4678]
[1722268891177,5.3464,187.04,186.99,15.4678]